[Event "Late-Titled-Tuesday-Blitz-June-04-2024"]
[Site "Chess.com"]
[Date "2024.06.04"]
[Round "2"]
[White "ChEsper99"]
[Black "FuenfgegenWilly"]
[Result "0-1"]
[WhiteElo "2235"]
[BlackElo "2496"]
[TimeControl "180+1"]
[EndTime "14:16:48 PDT"]
[Termination "FuenfgegenWilly won by resignation"]

1. d4 {[%clk 0:02:54.8]} 1... d5 {[%clk 0:02:58.1]} 2. c4 {[%clk 0:02:55.2]}
2... e5 {[%clk 0:02:58.3]} 3. dxe5 {[%clk 0:02:45.7]} 3... d4 {[%clk 0:02:59.2]}
4. Nf3 {[%clk 0:02:45.4]} 4... Nc6 {[%clk 0:02:59.5]} 5. g3 {[%clk 0:02:44.7]}
5... Nge7 {[%clk 0:02:58.3]} 6. Bg2 {[%clk 0:02:45.1]} 6... Ng6 {[%clk
0:02:58.1]} 7. O-O {[%clk 0:02:39.6]} 7... Ngxe5 {[%clk 0:02:56]} 8. Nxe5 {[%clk
0:02:38.4]} 8... Nxe5 {[%clk 0:02:56.9]} 9. b3 {[%clk 0:02:23.7]} 9... Bc5
{[%clk 0:02:54.9]} 10. Bb2 {[%clk 0:02:17.8]} 10... a5 {[%clk 0:02:51.3]} 11. a4
{[%clk 0:02:16.7]} 11... c6 {[%clk 0:02:45.1]} 12. Nd2 {[%clk 0:02:15.5]} 12...
Bf5 {[%clk 0:02:34]} 13. Ne4 {[%clk 0:02:13.3]} 13... Bxe4 {[%clk 0:02:33.9]}
14. Bxe4 {[%clk 0:02:14.2]} 14... Qd7 {[%clk 0:02:32.5]} 15. e3 {[%clk
0:01:58.4]} 15... O-O-O {[%clk 0:02:24.3]} 16. exd4 {[%clk 0:01:05.8]} 16...
Bxd4 {[%clk 0:02:25.2]} 17. Bxd4 {[%clk 0:01:05.9]} 17... Qxd4 {[%clk
0:02:26.1]} 18. Qxd4 {[%clk 0:01:02.6]} 18... Rxd4 {[%clk 0:02:27]} 19. Rfe1
{[%clk 0:00:59.6]} 19... f6 {[%clk 0:02:20]} 20. Rad1 {[%clk 0:00:47.2]} 20...
Rxd1 {[%clk 0:02:16]} 21. Rxd1 {[%clk 0:00:48.1]} 21... h6 {[%clk 0:02:15.6]}
22. f4 {[%clk 0:00:47]} 22... Nf7 {[%clk 0:02:04.3]} 23. Bg6 {[%clk 0:00:41.6]}
23... Rd8 {[%clk 0:01:56.9]} 24. Re1 {[%clk 0:00:32.8]} 24... Nd6 {[%clk
0:01:55.2]} 25. Re7 {[%clk 0:00:32.4]} 25... Rd7 {[%clk 0:01:54.4]} 26. Re2
{[%clk 0:00:25.8]} 26... b6 {[%clk 0:01:51.3]} 27. Kf2 {[%clk 0:00:25.7]} 27...
Kd8 {[%clk 0:01:48.7]} 28. h4 {[%clk 0:00:21.9]} 28... Re7 {[%clk 0:01:48.7]}
29. Rd2 {[%clk 0:00:21.1]} 29... Kc7 {[%clk 0:01:49.3]} 30. Kf3 {[%clk
0:00:17.8]} 30... Nb7 {[%clk 0:01:50.2]} 31. Be4 {[%clk 0:00:15.3]} 31... Nc5
{[%clk 0:01:51.1]} 32. Bc2 {[%clk 0:00:14.2]} 32... Re1 {[%clk 0:01:49.7]} 33.
Re2 {[%clk 0:00:13.2]} 33... Rxe2 {[%clk 0:01:46.2]} 34. Kxe2 {[%clk 0:00:14.1]}
34... Kd6 {[%clk 0:01:45.8]} 35. Kf3 {[%clk 0:00:14.3]} 35... Na6 {[%clk
0:01:42.1]} 36. Kg4 {[%clk 0:00:13.8]} 36... Nb4 {[%clk 0:01:43]} 37. Be4 {[%clk
0:00:10.4]} 37... Ke7 {[%clk 0:01:43]} 38. Kh5 {[%clk 0:00:08.6]} 38... Kf7
{[%clk 0:01:43]} 39. Bg6+ {[%clk 0:00:07.8]} 39... Kf8 {[%clk 0:01:41.1]} 40.
Be4 {[%clk 0:00:08.7]} 40... Na6 {[%clk 0:01:35.3]} 41. Bxc6 {[%clk 0:00:08]}
41... Nc5 {[%clk 0:01:35.8]} 42. Kg4 {[%clk 0:00:05.1]} 42... Nxb3 {[%clk
0:01:36]} 43. Bb5 {[%clk 0:00:03.4]} 43... Ke7 {[%clk 0:01:35.3]} 44. Kf3 {[%clk
0:00:03.2]} 44... Nc5 {[%clk 0:01:33.6]} 45. Ke3 {[%clk 0:00:03.1]} 45... Kd6
{[%clk 0:01:32.5]} 46. Kd4 {[%clk 0:00:03.5]} 46... Nb3+ {[%clk 0:01:22.3]} 47.
Ke4 {[%clk 0:00:03.4]} 47... Ke6 {[%clk 0:01:22.9]} 48. Ba6 {[%clk 0:00:02.6]}
48... Nc5+ {[%clk 0:01:22]} 49. Kd4 {[%clk 0:00:02.9]} 49... Nxa6 {[%clk
0:01:22.9]} 0-1

[Event "Late-Titled-Tuesday-Blitz-June-04-2024"]
[Site "Chess.com"]
[Date "2024.06.04"]
[Round "2"]
[White "Real_taiatai"]
[Black "nitpicker"]
[Result "0-1"]
[WhiteElo "2511"]
[BlackElo "2327"]
[TimeControl "180+1"]
[EndTime "14:16:52 PDT"]
[Termination "nitpicker won by resignation"]

1. e4 {[%clk 0:03:00.9]} 1... c5 {[%clk 0:02:59.3]} 2. Nf3 {[%clk 0:03:01.1]}
2... Nc6 {[%clk 0:02:59.3]} 3. d4 {[%clk 0:02:58.2]} 3... cxd4 {[%clk
0:02:58.6]} 4. Nxd4 {[%clk 0:02:59.1]} 4... Nf6 {[%clk 0:02:58.5]} 5. Nc3 {[%clk
0:02:57.3]} 5... d6 {[%clk 0:02:58.6]} 6. Be2 {[%clk 0:02:53.7]} 6... e6 {[%clk
0:02:56.1]} 7. O-O {[%clk 0:02:52]} 7... a6 {[%clk 0:02:56.1]} 8. Nb3 {[%clk
0:02:48.2]} 8... Be7 {[%clk 0:02:54.4]} 9. Be3 {[%clk 0:02:48.4]} 9... Qc7
{[%clk 0:02:53.2]} 10. a4 {[%clk 0:02:47.8]} 10... b6 {[%clk 0:02:53.6]} 11. f4
{[%clk 0:02:47.9]} 11... Bb7 {[%clk 0:02:41.3]} 12. Bf3 {[%clk 0:02:47.4]} 12...
Rb8 {[%clk 0:02:31.7]} 13. Qe2 {[%clk 0:02:41.1]} 13... O-O {[%clk 0:02:29.7]}
14. g4 {[%clk 0:02:08.3]} 14... Rfe8 {[%clk 0:02:28.8]} 15. g5 {[%clk
0:02:08.2]} 15... Nd7 {[%clk 0:02:29]} 16. h4 {[%clk 0:02:07.1]} 16... Bf8
{[%clk 0:02:15.8]} 17. h5 {[%clk 0:02:03.3]} 17... g6 {[%clk 0:02:09.2]} 18. Rf2
{[%clk 0:01:46.2]} 18... Bg7 {[%clk 0:02:06.5]} 19. Rh2 {[%clk 0:01:46.2]} 19...
Na5 {[%clk 0:01:56.9]} 20. Nd4 {[%clk 0:01:17.7]} 20... Nc4 {[%clk 0:01:52.7]}
21. Bf2 {[%clk 0:01:09.5]} 21... Nxb2 {[%clk 0:01:49.6]} 22. Qe1 {[%clk
0:00:53.6]} 22... Rbc8 {[%clk 0:01:41.8]} 23. Nce2 {[%clk 0:00:52.3]} 23... Nc4
{[%clk 0:01:34.1]} 24. f5 {[%clk 0:00:38.5]} 24... exf5 {[%clk 0:01:26.1]} 25.
exf5 {[%clk 0:00:37.6]} 25... Be5 {[%clk 0:01:06.6]} 26. Rh3 {[%clk 0:00:30.4]}
26... Bxf3 {[%clk 0:00:58]} 27. Nxf3 {[%clk 0:00:24.8]} 27... Bxa1 {[%clk
0:00:55.3]} 28. Qxa1 {[%clk 0:00:25.7]} 28... Rxe2 {[%clk 0:00:54.6]} 29. hxg6
{[%clk 0:00:26.6]} 29... fxg6 {[%clk 0:00:49.8]} 30. fxg6 {[%clk 0:00:25.5]}
30... Nde5 {[%clk 0:00:46.9]} 31. gxh7+ {[%clk 0:00:20.5]} 31... Kh8 {[%clk
0:00:46.7]} 32. Bg3 {[%clk 0:00:17.8]} 32... Qd7 {[%clk 0:00:43.3]} 33. Nxe5
{[%clk 0:00:16.6]} 33... Qxh3 {[%clk 0:00:37.8]} 34. Nf7+ {[%clk 0:00:08.1]}
34... Kxh7 {[%clk 0:00:37.8]} 0-1

[Event "Late-Titled-Tuesday-Blitz-June-04-2024"]
[Site "Chess.com"]
[Date "2024.06.04"]
[Round "2"]
[White "Tol_Tol"]
[Black "arctic_t00"]
[Result "0-1"]
[WhiteElo "2369"]
[BlackElo "2635"]
[TimeControl "180+1"]
[EndTime "14:16:54 PDT"]
[Termination "arctic_t00 won on time"]

1. d4 {[%clk 0:03:00.9]} 1... d5 {[%clk 0:02:58.9]} 2. c4 {[%clk 0:02:59.8]}
2... c6 {[%clk 0:02:59.2]} 3. Nf3 {[%clk 0:02:59.1]} 3... Nf6 {[%clk 0:02:59.8]}
4. Nc3 {[%clk 0:02:59.4]} 4... e6 {[%clk 0:02:58.4]} 5. Qd3 {[%clk 0:02:58.7]}
5... Nbd7 {[%clk 0:02:56.3]} 6. a3 {[%clk 0:02:57.8]} 6... dxc4 {[%clk
0:02:55.3]} 7. Qxc4 {[%clk 0:02:57]} 7... Bd6 {[%clk 0:02:53.8]} 8. e4 {[%clk
0:02:56.6]} 8... e5 {[%clk 0:02:53.5]} 9. Be2 {[%clk 0:02:55.3]} 9... O-O {[%clk
0:02:52.8]} 10. O-O {[%clk 0:02:55.4]} 10... Qc7 {[%clk 0:02:43.6]} 11. h3
{[%clk 0:02:48.6]} 11... b5 {[%clk 0:02:42]} 12. Qb3 {[%clk 0:02:44.9]} 12...
exd4 {[%clk 0:02:35.1]} 13. Nxd4 {[%clk 0:02:44.1]} 13... a6 {[%clk 0:02:31.8]}
14. Nf5 {[%clk 0:02:40.2]} 14... Bh2+ {[%clk 0:02:25.5]} 15. Kh1 {[%clk
0:02:39]} 15... Nc5 {[%clk 0:02:14.5]} 16. Qc2 {[%clk 0:02:24.4]} 16... Bxf5
{[%clk 0:02:05.7]} 17. exf5 {[%clk 0:02:22.3]} 17... Be5 {[%clk 0:02:01.3]} 18.
Be3 {[%clk 0:02:12.7]} 18... Ncd7 {[%clk 0:01:55.9]} 19. Rac1 {[%clk 0:02:04.7]}
19... Rac8 {[%clk 0:01:54.8]} 20. f4 {[%clk 0:01:30.5]} 20... Bd6 {[%clk
0:01:52.5]} 21. Ne4 {[%clk 0:01:25.5]} 21... Nxe4 {[%clk 0:01:51.3]} 22. Qxe4
{[%clk 0:01:25.1]} 22... Rfe8 {[%clk 0:01:50.3]} 23. Qf3 {[%clk 0:01:22.9]}
23... Nf6 {[%clk 0:01:46.8]} 24. Bc5 {[%clk 0:01:13.5]} 24... Nd5 {[%clk
0:01:42.5]} 25. g3 {[%clk 0:01:02.3]} 25... Bxc5 {[%clk 0:01:23.5]} 26. Rxc5
{[%clk 0:01:01.8]} 26... Qe7 {[%clk 0:01:19.2]} 27. Rc2 {[%clk 0:00:19.9]} 27...
Ne3 {[%clk 0:01:18.3]} 28. Rxc6 {[%clk 0:00:18.8]} 28... Nxf1 {[%clk 0:01:17]}
29. Bxf1 {[%clk 0:00:18.7]} 29... Rxc6 {[%clk 0:01:11.8]} 30. Qxc6 {[%clk
0:00:18.7]} 30... Qe4+ {[%clk 0:01:08.7]} 31. Qxe4 {[%clk 0:00:14.2]} 31... Rxe4
{[%clk 0:01:09.6]} 32. Kg2 {[%clk 0:00:12.7]} 32... Rd4 {[%clk 0:01:08.9]} 33.
a4 {[%clk 0:00:06.4]} 33... Rd2+ {[%clk 0:01:07.1]} 34. Kf3 {[%clk 0:00:05.3]}
34... Rxb2 {[%clk 0:01:08]} 35. axb5 {[%clk 0:00:05.9]} 35... axb5 {[%clk
0:01:08.9]} 36. Ke4 {[%clk 0:00:05.7]} 36... Kf8 {[%clk 0:01:07.1]} 37. Kd4
{[%clk 0:00:05.9]} 37... b4 {[%clk 0:01:02.4]} 38. Bc4 {[%clk 0:00:04.5]} 38...
Ke7 {[%clk 0:01:02]} 39. g4 {[%clk 0:00:04.7]} 39... f6 {[%clk 0:01:01.8]} 40.
h4 {[%clk 0:00:04.7]} 40... h6 {[%clk 0:01:02]} 41. g5 {[%clk 0:00:02.5]} 41...
Kd6 {[%clk 0:01:01.6]} 0-1

[Event "Late-Titled-Tuesday-Blitz-June-04-2024"]
[Site "Chess.com"]
[Date "2024.06.04"]
[Round "2"]
[White "Squirlolz"]
[Black "Sacbutt"]
[Result "0-1"]
[WhiteElo "2509"]
[BlackElo "2326"]
[TimeControl "180+1"]
[EndTime "14:16:54 PDT"]
[Termination "Sacbutt won by resignation"]

1. Nf3 {[%clk 0:02:54.4]} 1... Nf6 {[%clk 0:02:59.7]} 2. g3 {[%clk 0:02:54.7]}
2... d5 {[%clk 0:02:59.8]} 3. Bg2 {[%clk 0:02:55.6]} 3... e6 {[%clk 0:03:00.3]}
4. O-O {[%clk 0:02:56.5]} 4... Be7 {[%clk 0:03:00.9]} 5. d3 {[%clk 0:02:57.2]}
5... O-O {[%clk 0:03:01.5]} 6. Nbd2 {[%clk 0:02:57.7]} 6... Nbd7 {[%clk
0:03:01.9]} 7. e4 {[%clk 0:02:58.2]} 7... c5 {[%clk 0:03:01.7]} 8. Re1 {[%clk
0:02:58.4]} 8... dxe4 {[%clk 0:03:00.4]} 9. dxe4 {[%clk 0:02:58.5]} 9... Qc7
{[%clk 0:02:57.9]} 10. e5 {[%clk 0:02:57.1]} 10... Nd5 {[%clk 0:02:55.1]} 11.
Ne4 {[%clk 0:02:54.8]} 11... Nxe5 {[%clk 0:02:46]} 12. Nd4 {[%clk 0:02:51.5]}
12... cxd4 {[%clk 0:02:36.8]} 13. Qxd4 {[%clk 0:02:42]} 13... Nc6 {[%clk
0:02:18.4]} 14. Qd3 {[%clk 0:02:36.5]} 14... Nf6 {[%clk 0:02:13.2]} 15. a3
{[%clk 0:02:32.9]} 15... Nxe4 {[%clk 0:02:10.4]} 16. Rxe4 {[%clk 0:02:32.5]}
16... e5 {[%clk 0:02:04.6]} 17. Rc4 {[%clk 0:02:25.5]} 17... Be6 {[%clk
0:02:00.1]} 18. Rc3 {[%clk 0:02:23.8]} 18... Rad8 {[%clk 0:01:57.2]} 19. Qf1
{[%clk 0:02:18.6]} 19... Bd5 {[%clk 0:01:49.6]} 20. Be3 {[%clk 0:02:17.8]} 20...
Bxg2 {[%clk 0:01:46.5]} 21. Qxg2 {[%clk 0:02:18.7]} 21... a6 {[%clk 0:01:41.6]}
22. b4 {[%clk 0:02:14.7]} 22... Kh8 {[%clk 0:01:35.8]} 23. Rb1 {[%clk 0:02:11]}
23... f5 {[%clk 0:01:33.6]} 24. a4 {[%clk 0:02:11.6]} 24... Qd7 {[%clk
0:01:28.2]} 25. b5 {[%clk 0:02:10.7]} 25... axb5 {[%clk 0:01:28.1]} 26. axb5
{[%clk 0:02:11.6]} 26... Nd4 {[%clk 0:01:26.6]} 27. Bxd4 {[%clk 0:02:12.2]}
27... exd4 {[%clk 0:01:16.8]} 28. Rd3 {[%clk 0:02:12.5]} 28... b6 {[%clk
0:01:12.1]} 29. Rbd1 {[%clk 0:02:10.7]} 29... f4 {[%clk 0:01:02.9]} 30. Rb3
{[%clk 0:02:09.2]} 30... Bc5 {[%clk 0:00:59.5]} 31. Rdd3 {[%clk 0:02:06.2]}
31... fxg3 {[%clk 0:00:57.9]} 32. hxg3 {[%clk 0:02:05.1]} 32... Rf7 {[%clk
0:00:52.7]} 33. c3 {[%clk 0:02:04.8]} 33... Rdf8 {[%clk 0:00:49]} 34. cxd4
{[%clk 0:02:04.6]} 34... Rxf2 {[%clk 0:00:43.2]} 35. Qxf2 {[%clk 0:02:01.5]}
35... Rxf2 {[%clk 0:00:43.6]} 36. Kxf2 {[%clk 0:02:02.4]} 36... Bxd4+ {[%clk
0:00:43]} 37. Kg2 {[%clk 0:02:01.9]} 37... Qd5+ {[%clk 0:00:42.2]} 38. Rf3
{[%clk 0:02:01.5]} 38... g5 {[%clk 0:00:39.7]} 39. Kf1 {[%clk 0:02:01.8]} 39...
Kg7 {[%clk 0:00:33.9]} 40. Rbd3 {[%clk 0:02:01.4]} 40... Qxb5 {[%clk 0:00:32.6]}
41. Kg2 {[%clk 0:02:01.8]} 41... Bc5 {[%clk 0:00:29.3]} 42. g4 {[%clk
0:02:00.8]} 42... Qa4 {[%clk 0:00:28]} 43. Kh3 {[%clk 0:01:59.3]} 43... Qe4
{[%clk 0:00:26.3]} 44. Rc3 {[%clk 0:01:47.1]} 44... h5 {[%clk 0:00:24.8]} 45.
Rfd3 {[%clk 0:01:39.6]} 45... Qxg4+ {[%clk 0:00:21.8]} 46. Kh2 {[%clk
0:01:40.2]} 46... Qg1+ {[%clk 0:00:20]} 47. Kh3 {[%clk 0:01:40.8]} 47... g4+
{[%clk 0:00:19.5]} 48. Kh4 {[%clk 0:01:41.7]} 48... Qh2+ {[%clk 0:00:18.4]} 49.
Kg5 {[%clk 0:01:42.1]} 49... Be7+ {[%clk 0:00:17.3]} 50. Kf5 {[%clk 0:01:42.6]}
50... Qf2+ {[%clk 0:00:17]} 51. Ke6 {[%clk 0:01:42.9]} 51... Qf6+ {[%clk
0:00:16.9]} 52. Kd7 {[%clk 0:01:43.6]} 52... h4 {[%clk 0:00:16.7]} 53. Re3
{[%clk 0:01:39.1]} 53... Kf8 {[%clk 0:00:07.3]} 54. Rc8+ {[%clk 0:01:38.5]}
54... Kf7 {[%clk 0:00:07.4]} 55. Rc6 {[%clk 0:01:32]} 55... Qd4+ {[%clk
0:00:07.2]} 56. Kc8 {[%clk 0:01:24.4]} 56... Qxe3 {[%clk 0:00:08.1]} 0-1

[Event "Late-Titled-Tuesday-Blitz-June-04-2024"]
[Site "Chess.com"]
[Date "2024.06.04"]
[Round "2"]
[White "CDOEspiao"]
[Black "Kostukov_Alex"]
[Result "1-0"]
[WhiteElo "2521"]
[BlackElo "2307"]
[TimeControl "180+1"]
[EndTime "14:16:56 PDT"]
[Termination "CDOEspiao won on time"]

1. d4 {[%clk 0:02:59.7]} 1... g6 {[%clk 0:02:57.4]} 2. c4 {[%clk 0:02:59.5]}
2... Bg7 {[%clk 0:02:56.5]} 3. Nc3 {[%clk 0:03:00.1]} 3... d6 {[%clk 0:02:56.5]}
4. e4 {[%clk 0:03:00.7]} 4... e5 {[%clk 0:02:56.7]} 5. Nf3 {[%clk 0:03:01.4]}
5... exd4 {[%clk 0:02:57.1]} 6. Nxd4 {[%clk 0:03:02.3]} 6... Nc6 {[%clk
0:02:57.5]} 7. Nc2 {[%clk 0:03:02.4]} 7... Nge7 {[%clk 0:02:57.7]} 8. Be2 {[%clk
0:03:02.6]} 8... O-O {[%clk 0:02:56]} 9. O-O {[%clk 0:03:01.8]} 9... f5 {[%clk
0:02:53.4]} 10. Bg5 {[%clk 0:02:58.7]} 10... h6 {[%clk 0:02:49]} 11. Bd2 {[%clk
0:02:48.6]} 11... f4 {[%clk 0:02:45.1]} 12. f3 {[%clk 0:02:44.9]} 12... Be6
{[%clk 0:02:41.4]} 13. Be1 {[%clk 0:02:43.6]} 13... g5 {[%clk 0:02:36.8]} 14.
Rb1 {[%clk 0:02:43.9]} 14... Ne5 {[%clk 0:02:34.6]} 15. Nd5 {[%clk 0:02:38.7]}
15... N7g6 {[%clk 0:02:20.1]} 16. Nd4 {[%clk 0:02:38.3]} 16... Bf7 {[%clk
0:02:12.5]} 17. Nf5 {[%clk 0:02:38.4]} 17... c6 {[%clk 0:02:03.9]} 18. Nc3
{[%clk 0:02:21.5]} 18... Nxc4 {[%clk 0:01:55.4]} 19. Nxg7 {[%clk 0:02:16.7]}
19... Kxg7 {[%clk 0:01:39.9]} 20. Qd4+ {[%clk 0:02:11.8]} 20... Nge5 {[%clk
0:01:22.1]} 21. Bf2 {[%clk 0:01:59.9]} 21... Ne3 {[%clk 0:00:31.2]} 22. Bxe3
{[%clk 0:01:58.3]} 22... fxe3 {[%clk 0:00:32.1]} 23. Qxe3 {[%clk 0:01:59.1]}
23... Qb6 {[%clk 0:00:27.9]} 24. Qxb6 {[%clk 0:01:58.6]} 24... axb6 {[%clk
0:00:28.8]} 25. a3 {[%clk 0:01:59.3]} 25... b5 {[%clk 0:00:28.1]} 26. Rbd1
{[%clk 0:01:59.9]} 26... Rfd8 {[%clk 0:00:22.8]} 27. f4 {[%clk 0:02:00]} 27...
Nc4 {[%clk 0:00:19.8]} 28. fxg5 {[%clk 0:01:58.2]} 28... Ne3 {[%clk 0:00:16.4]}
29. gxh6+ {[%clk 0:01:58.6]} 29... Kg6 {[%clk 0:00:13.1]} 30. Bh5+ {[%clk
0:01:44.8]} 30... Kxh5 {[%clk 0:00:11.4]} 31. Rxf7 {[%clk 0:01:45.7]} 31... Nxd1
{[%clk 0:00:11.4]} 32. Nxd1 {[%clk 0:01:46.6]} 32... Kxh6 {[%clk 0:00:11.3]} 33.
Rxb7 {[%clk 0:01:47.2]} 33... Re8 {[%clk 0:00:07.1]} 34. Nc3 {[%clk 0:01:45.4]}
34... Rab8 {[%clk 0:00:04.2]} 35. Rd7 {[%clk 0:01:43.6]} 35... Red8 {[%clk
0:00:04.1]} 36. Rf7 {[%clk 0:01:42]} 36... c5 {[%clk 0:00:04.2]} 37. Nd5 {[%clk
0:01:38.2]} 37... b4 {[%clk 0:00:03.8]} 38. axb4 {[%clk 0:01:37.8]} 38... cxb4
{[%clk 0:00:04.7]} 39. Rf6+ {[%clk 0:01:37.8]} 39... Kg7 {[%clk 0:00:04.4]} 40.
g4 {[%clk 0:01:37.7]} 40... b3 {[%clk 0:00:04.8]} 41. g5 {[%clk 0:01:37.6]}
41... Rf8 {[%clk 0:00:03.2]} 42. Rxd6 {[%clk 0:01:36.6]} 42... Rbe8 {[%clk
0:00:03.6]} 43. Nf6 {[%clk 0:01:35.7]} 43... Re5 {[%clk 0:00:03.5]} 44. h4
{[%clk 0:01:35.5]} 44... Rh8 {[%clk 0:00:03.7]} 45. Rd7+ {[%clk 0:01:33.5]}
45... Kg6 {[%clk 0:00:04.1]} 46. Rd6 {[%clk 0:01:24.7]} 46... Rxh4 {[%clk
0:00:03.3]} 47. Nd7+ {[%clk 0:01:25]} 47... Kxg5 {[%clk 0:00:01.1]} 48. Nxe5
{[%clk 0:01:25]} 48... Kf4 {[%clk 0:00:02]} 49. Ng6+ {[%clk 0:01:25.2]} 1-0

[Event "Late-Titled-Tuesday-Blitz-June-04-2024"]
[Site "Chess.com"]
[Date "2024.06.04"]
[Round "2"]
[White "shirovin"]
[Black "Supelyel"]
[Result "0-1"]
[WhiteElo "2098"]
[BlackElo "2435"]
[TimeControl "180+1"]
[EndTime "14:16:56 PDT"]
[Termination "Supelyel won on time"]

1. e4 {[%clk 0:03:00.9]} 1... d6 {[%clk 0:02:55.7]} 2. d4 {[%clk 0:02:59.8]}
2... Nf6 {[%clk 0:02:54.3]} 3. Nc3 {[%clk 0:03:00.2]} 3... e5 {[%clk 0:02:54.2]}
4. Nf3 {[%clk 0:02:57.7]} 4... Nbd7 {[%clk 0:02:51.3]} 5. g4 {[%clk 0:02:56.1]}
5... Nxg4 {[%clk 0:02:50.1]} 6. Rg1 {[%clk 0:02:54.6]} 6... Ngf6 {[%clk
0:02:49.8]} 7. Be3 {[%clk 0:02:48.5]} 7... h6 {[%clk 0:02:48.6]} 8. Qd2 {[%clk
0:02:42]} 8... c6 {[%clk 0:02:48.7]} 9. O-O-O {[%clk 0:02:39.7]} 9... b5 {[%clk
0:02:44.1]} 10. dxe5 {[%clk 0:02:34.3]} 10... b4 {[%clk 0:02:21]} 11. exf6
{[%clk 0:02:13.3]} 11... bxc3 {[%clk 0:02:20.7]} 12. Qxc3 {[%clk 0:02:13.4]}
12... Qxf6 {[%clk 0:02:18]} 13. Bd4 {[%clk 0:02:09.3]} 13... Qf4+ {[%clk
0:02:14.3]} 14. Kb1 {[%clk 0:02:04.2]} 14... f6 {[%clk 0:01:48.6]} 15. Bc4
{[%clk 0:01:29]} 15... c5 {[%clk 0:01:42.4]} 16. Bd5 {[%clk 0:01:02.4]} 16...
Rb8 {[%clk 0:01:23.4]} 17. Rg3 {[%clk 0:00:31.4]} 17... cxd4 {[%clk 0:01:22.4]}
18. Nxd4 {[%clk 0:00:29.2]} 18... Nc5 {[%clk 0:01:06.7]} 19. Nc6 {[%clk
0:00:19.7]} 19... Rb6 {[%clk 0:00:59.5]} 20. b3 {[%clk 0:00:11.9]} 20... Bb7
{[%clk 0:00:30.5]} 21. Nd4 {[%clk 0:00:07.7]} 21... g5 {[%clk 0:00:15.4]} 22.
Re3 {[%clk 0:00:06.4]} 22... Be7 {[%clk 0:00:15.4]} 23. Ne6 {[%clk 0:00:05.1]}
23... Qe5 {[%clk 0:00:14.9]} 24. Nc7+ {[%clk 0:00:03.2]} 24... Kd7 {[%clk
0:00:14.7]} 0-1

[Event "Late-Titled-Tuesday-Blitz-June-04-2024"]
[Site "Chess.com"]
[Date "2024.06.04"]
[Round "2"]
[White "enestnrvrd"]
[Black "yoelpolanco"]
[Result "1-0"]
[WhiteElo "2659"]
[BlackElo "2373"]
[TimeControl "180+1"]
[EndTime "14:16:58 PDT"]
[Termination "enestnrvrd won on time"]

1. e4 {[%clk 0:02:47]} 1... e5 {[%clk 0:02:56.5]} 2. Bc4 {[%clk 0:02:46.6]} 2...
Nf6 {[%clk 0:02:54.6]} 3. d3 {[%clk 0:02:46.2]} 3... Be7 {[%clk 0:02:53.3]} 4.
Nf3 {[%clk 0:02:46.2]} 4... d6 {[%clk 0:02:51.7]} 5. O-O {[%clk 0:02:45.2]} 5...
O-O {[%clk 0:02:51.7]} 6. Re1 {[%clk 0:02:45.3]} 6... c6 {[%clk 0:02:51.9]} 7.
a4 {[%clk 0:02:44.7]} 7... b6 {[%clk 0:02:51.7]} 8. Nc3 {[%clk 0:02:43.2]} 8...
a6 {[%clk 0:02:51.9]} 9. h3 {[%clk 0:02:41.8]} 9... Nbd7 {[%clk 0:02:51.6]} 10.
Ba2 {[%clk 0:02:22.7]} 10... Bb7 {[%clk 0:02:49.6]} 11. Nh4 {[%clk 0:02:14.2]}
11... d5 {[%clk 0:02:38.6]} 12. Nf5 {[%clk 0:02:12.9]} 12... Bb4 {[%clk
0:02:37.9]} 13. Bd2 {[%clk 0:02:07.7]} 13... Bc5 {[%clk 0:01:53.9]} 14. Qf3
{[%clk 0:02:02.2]} 14... d4 {[%clk 0:01:51.6]} 15. Ne2 {[%clk 0:02:00.5]} 15...
Re8 {[%clk 0:01:49.5]} 16. Qg3 {[%clk 0:01:55.5]} 16... Nh5 {[%clk 0:01:45.2]}
17. Qg4 {[%clk 0:01:43.9]} 17... Ndf6 {[%clk 0:01:44.6]} 18. Qh4 {[%clk
0:01:43.1]} 18... Rf8 {[%clk 0:01:26.6]} 19. Neg3 {[%clk 0:01:30.8]} 19... Nxg3
{[%clk 0:01:16.1]} 20. Qxg3 {[%clk 0:01:31.7]} 20... g6 {[%clk 0:01:12.9]} 21.
Nh6+ {[%clk 0:01:16.5]} 21... Kg7 {[%clk 0:01:12.4]} 22. Qxe5 {[%clk 0:01:10.4]}
22... Bd6 {[%clk 0:00:45.4]} 23. Qg5 {[%clk 0:01:09.7]} 23... Nh5 {[%clk
0:00:17.2]} 24. Nf5+ {[%clk 0:00:59.5]} 24... Kg8 {[%clk 0:00:17.3]} 25. Nxd6
{[%clk 0:00:50.4]} 25... Qxd6 {[%clk 0:00:15.9]} 26. e5 {[%clk 0:00:48.5]} 26...
Qd8 {[%clk 0:00:13.8]} 27. e6 {[%clk 0:00:47.6]} 27... fxe6 {[%clk 0:00:09.6]}
28. Rxe6 {[%clk 0:00:45.9]} 28... Qxg5 {[%clk 0:00:09.8]} 29. Rxg6+ {[%clk
0:00:43.1]} 29... Kh8 {[%clk 0:00:06.2]} 30. Rxg5 {[%clk 0:00:43.1]} 30... Nf6
{[%clk 0:00:07.1]} 31. Re1 {[%clk 0:00:41.9]} 31... c5 {[%clk 0:00:04.3]} 32.
Re7 {[%clk 0:00:40.4]} 32... Bc6 {[%clk 0:00:03.5]} 33. a5 {[%clk 0:00:33.7]}
1-0